lending/lending_fUSD_20241007
["ID","MTS","AMOUNT","RATE_DAILY","PERIOD"]
[340018471,1728334250312,-500.0,0.0004,120]
[340018473,1728334250321,-668.47,0.0004,120]
[340018474,1728334250329,-872.94,0.0004,120]
[340018476,1728334250339,-935.85,0.0004,120]
[340018477,1728334250347,-641.57,0.0004,120]
[340018479,1728334250356,-939.41,0.0004,120]
[340018480,1728334250365,-6500.0,0.0004,14]
[340018482,1728334250374,-6500.0,0.0004,14]
[340018483,1728334250383,-300.986512,0.0004,14]
[340018485,1728334250392,-202.97,0.0004,120]
[340018486,1728334250401,-150.0,0.0004,2]
[340018488,1728334250410,-500.0,0.0004,120]
[340018490,1728334250419,-152.0,0.00040168,4]
[340018491,1728334250429,-151.100805,0.00040198,120]
[340018493,1728334250438,-500.0,0.00040273,120]
[340018494,1728334250447,-500.0,0.00040273,120]
[340018496,1728334250456,-500.0,0.00040273,120]
[340018497,1728334250464,-500.0,0.00040273,120]
[340018499,1728334250473,-150.0,0.00040273,120]
[340018501,1728334250482,-500.0,0.00040273,120]
[340018502,1728334250490,-500.0,0.00040273,120]
[340018504,1728334250499,-500.0,0.00040273,120]
[340018505,1728334250508,-500.0,0.00040273,120]
[340018507,1728334250517,-746.07,0.00040273,120]
[340018508,1728334250526,-500.0,0.00040273,120]
[340018510,1728334250535,-524.72,0.00040273,120]
[340018512,1728334250544,-500.0,0.00040273,120]
[340018513,1728334250553,-668.47,0.00040273,120]
[340018515,1728334250562,-872.94,0.00040273,120]
[340018517,1728334250571,-935.85,0.00040273,120]
[340018518,1728334250581,-641.57,0.00040273,120]
[340018520,1728334250590,-939.41,0.00040273,120]
[340018522,1728334250599,-500.0,0.00040273,120]
[340018523,1728334250608,-339.62,0.00040345,2]
[340018525,1728334250617,-500.0,0.00040356,60]
[340018526,1728334250626,-500.0,0.00040356,60]
[340018528,1728334250635,-12000.0,0.0004037,8]
[340018530,1728334250644,-23259.71598471,0.00040412,2]
[340018531,1728334250653,-157.100805,0.00040498,120]
[340018533,1728334250662,-500.0,0.00040547,120]
[340018534,1728334250671,-500.0,0.00040547,120]
[340018536,1728334250682,-500.0,0.00040547,120]
[340018537,1728334250691,-500.0,0.00040547,120]
[340018539,1728334250701,-150.0,0.00040547,120]
[340018541,1728334250710,-500.0,0.00040547,120]
[340018542,1728334250719,-500.0,0.00040547,120]
[340018544,1728334250729,-500.0,0.00040547,120]
[340018546,1728334250738,-500.0,0.00040547,120]
[340018547,1728334250747,-746.07,0.00040547,120]
[340018549,1728334250756,-500.0,0.00040547,120]
[340018550,1728334250765,-524.72,0.00040547,120]
[340018552,1728334250774,-289.03273951,0.00040547,120]
[340018554,1728334250784,-668.47,0.00040547,120]
[340018555,1728334250793,-872.94,0.00040547,120]
[340018557,1728334250802,-935.85,0.00040547,120]
[340018558,1728334250811,-641.57,0.00040547,120]
[340018560,1728334250820,-939.41,0.00040547,120]
[340018562,1728334250830,-500.0,0.00040547,120]
[340018563,1728334250839,-150.0,0.00040774,2]
[340018565,1728334250849,-151.100805,0.00040798,120]
[340018566,1728334250858,-860.0,0.000408,27]
[340018568,1728334250867,-150.0,0.00040807,2]
[340018570,1728334250877,-150.0,0.00040818,2]
[340018571,1728334250886,-524.61739556,0.00040821,120]
[340018573,1728334250896,-500.0,0.00040821,120]
[340018575,1728334250905,-500.0,0.00040821,120]
[340018576,1728334250915,-500.0,0.00040821,120]
[340018578,1728334250925,-150.0,0.00040821,120]
[340018580,1728334250934,-500.0,0.00040821,120]
[340018581,1728334250944,-500.0,0.00040821,120]
[340018583,1728334250953,-500.0,0.00040821,120]
[340018584,1728334250962,-620.99920594,0.00040821,120]
[340018586,1728334250971,-746.07,0.00040821,120]
[340018588,1728334250980,-530.044,0.00040821,120]
[340018589,1728334250990,-524.72,0.00040821,120]
[340018591,1728334250999,-668.47,0.00040821,120]
[340018592,1728334251008,-872.94,0.00040821,120]
[340018594,1728334251017,-935.85,0.00040821,120]
[340018596,1728334251026,-641.57,0.00040821,120]
[340018597,1728334251036,-939.41,0.00040821,120]
[340018599,1728334251045,-500.0,0.00040821,120]
[340018600,1728334251054,-150.0,0.00040829,2]
[340018602,1728334251064,-150.0,0.00040839,2]
[340018604,1728334251073,-150.0,0.00040856,2]
[340018605,1728334251082,-150.0,0.00040857,2]
[340018607,1728334251092,-150.0,0.00040875,2]
[340018609,1728334251101,-150.0,0.0004088,2]
[340018610,1728334251111,-430.0,0.000409,27]
[340018612,1728334251121,-150.0,0.00040913,2]
[340018613,1728334251132,-150.0,0.0004093,2]
[340018615,1728334251142,-150.0,0.0004093,2]
[340018616,1728334251151,-150.0,0.00040932,2]
[340018618,1728334251161,-150.0,0.00040942,2]
[340018620,1728334251170,-150.0,0.00040953,2]
[340018621,1728334251179,-150.0,0.00040962,2]
[340018622,1728334251189,-150.0,0.00040982,2]
[340018623,1728334251198,-50000.0,0.00041,31]
[340018624,1728334251207,-50000.0,0.00041,41]
[340018625,1728334251216,-345.38847642,0.00041,120]
[340018626,1728334251225,-1000.0,0.00041,2]
[340018627,1728334251234,-1000000.0,0.00041,120]
[340018628,1728334251244,-193.727716,0.00041,14]
[340018629,1728334251253,-193.727716,0.00041,14]
[340018630,1728334251262,-6500.0,0.00041,14]
[340018631,1728334251271,-6500.0,0.00041,14]
[340018632,1728334251281,-150.0,0.00041009,2]
[340018633,1728334251290,-150.0,0.00041015,2]
[340018634,1728334251299,-41925.87848441,0.0004104,10]
[340018635,1728334251309,-150.0,0.00041047,2]
[340018636,1728334251319,-150.0,0.00041069,2]
[340018647,1728334251428,-150.0,0.00041076,2]
[340018649,1728334251439,-150.0,0.00041088,2]
[340018651,1728334251448,-500.0,0.00041095,120]
[340018653,1728334251458,-268.72406565,0.00041095,120]
[340018655,1728334251467,-467.56260335,0.00041095,120]
[340018657,1728334251476,-150.0,0.00041095,120]
[340018659,1728334251485,-381.10000008,0.00041095,120]
[340018661,1728334251494,-1500.0,0.00041095,2]
[340018663,1728334251503,-500.0,0.00041095,120]
[340018665,1728334251512,-468.31300045,0.00041095,120]
[340018667,1728334251522,-746.07,0.00041095,120]
[340018669,1728334251531,-1000.0,0.00041095,120]
[340018671,1728334251541,-1000.0,0.00041095,120]
[340018672,1728334251551,-1000.0,0.00041095,120]
[340018674,1728334251560,-1000.0,0.00041095,120]
[340018676,1728334251569,-1000.0,0.00041095,120]
[340018678,1728334251579,-1000.0,0.00041095,120]
[340018680,1728334251588,-891.45373769,0.00041095,120]
[340018682,1728334251598,-524.72,0.00041095,120]
[340018684,1728334251607,-668.47,0.00041095,120]
[340018686,1728334251616,-872.94,0.00041095,120]
[340018688,1728334251626,-935.85,0.00041095,120]
[340018690,1728334251635,-641.57,0.00041095,120]
[340018692,1728334251645,-939.41,0.00041095,120]
[340018694,1728334251654,-500.0,0.00041095,120]
[340018696,1728334251663,-157.0,0.00041096,2]
[340018698,1728334251673,-3000.0,0.000411,2]
[340018699,1728334251683,-150.0,0.00041109,2]
[340018701,1728334251692,-150.0,0.00041132,2]
[340018703,1728334251702,-150.0,0.00041152,2]
[340018705,1728334251711,-150.0,0.00041155,2]
[340018707,1728334251721,-150.0,0.00041163,2]
[340018709,1728334251731,-520.08474376,0.00041163,120]
[340018710,1728334251740,-150.0,0.00041171,2]
[340018713,1728334251750,-150.0,0.00041173,2]
[340018714,1728334251759,-150.0,0.00041185,2]
[340018716,1728334251769,-150.0,0.00041189,2]
[340018718,1728334251779,-157.100805,0.00041198,120]
[340018720,1728334251788,-150.0,0.00041199,2]
[340018722,1728334251798,-1500.0,0.00041201,2]
[340018724,1728334251808,-150.0,0.00041215,2]
[340018726,1728334251817,-150.0,0.00041228,2]
[340018728,1728334251827,-1500.0,0.00041242,2]
[340018730,1728334251836,-150.0,0.00041244,2]
[340018732,1728334251845,-150.0,0.0004128,2]
[340018733,1728334251854,-150.0,0.00041283,2]
[340018735,1728334251863,-150.0,0.00041284,2]
[340018737,1728334251873,-150.0,0.00041284,2]
[340018739,1728334251882,-431.19,0.000413,30]
[340018741,1728334251892,-150.0,0.00041322,2]
[340018743,1728334251902,-150.0,0.00041341,2]
[340018745,1728334251911,-150.0,0.00041341,2]
[340018747,1728334251921,-150.0,0.00041353,2]
[340018749,1728334251930,-150.0,0.00041359,2]
[340018751,1728334251939,-150.0,0.00041364,2]
[340018753,1728334251948,-500.0,0.00041369,120]
[340018755,1728334251958,-150.0,0.00041369,2]
[340018757,1728334251967,-150.0,0.00041369,120]
[340018759,1728334251977,-500.0,0.00041369,120]
[340018761,1728334251987,-746.07,0.00041369,120]
[340018762,1728334251996,-524.72,0.00041369,120]
[340018764,1728334252006,-668.47,0.00041369,120]
[340018766,1728334252015,-872.94,0.00041369,120]
[340018768,1728334252025,-935.85,0.00041369,120]
[340018770,1728334252035,-641.57,0.00041369,120]
[340018772,1728334252044,-939.41,0.00041369,120]
[340018774,1728334252054,-500.0,0.00041369,120]
[340018776,1728334252064,-150.0,0.00041372,2]
[340018778,1728334252074,-150.0,0.00041374,2]
[340018780,1728334252084,-150.0,0.00041383,2]
[340018782,1728334252093,-150.0,0.00041399,2]
[340018785,1728334252111,-150.0,0.00041402,2]
[340018787,1728334252122,-150.0,0.00041404,2]
[340018789,1728334252131,-1500.0,0.00041404,2]
[340018791,1728334252141,-150.0,0.00041429,2]
[340018793,1728334252152,-150.0,0.00041448,2]
[340018795,1728334252161,-500.0,0.00041452,60]
[340018796,1728334252171,-500.0,0.00041452,60]
[340018798,1728334252182,-150.0,0.00041461,2]
[340018800,1728334252191,-150.0,0.00041461,2]
[340018802,1728334252201,-150.0,0.00041465,2]
[340018804,1728334252210,-150.0,0.00041466,2]
[340018806,1728334252220,-150.0,0.00041468,2]
[340018808,1728334252229,-150.0,0.0004147,2]
[340018810,1728334252239,-150.0,0.0004147,2]
[340018812,1728334252248,-1500.0,0.00041471,2]
[340018814,1728334252257,-150.0,0.00041472,2]
[340018816,1728334252267,-151.100805,0.00041498,120]
[340018818,1728334252276,-2110.0,0.000415,2]
[340018820,1728334252286,-150.0,0.00041502,2]
[340018822,1728334252295,-300.0,0.00041532,2]
[340018823,1728334252305,-150.0,0.00041532,2]
[340018825,1728334252314,-150.0,0.00041538,2]
[340018827,1728334252323,-1500.0,0.00041538,2]
[340018829,1728334252333,-150.0,0.00041546,2]
[340018831,1728334252342,-1500.0,0.0004158,2]
[340018833,1728334252352,-150.0,0.00041589,2]
[340018835,1728334252361,-150.0,0.00041599,2]
[340018837,1728334252370,-150.0,0.00041611,2]
[340018839,1728334252380,-150.0,0.00041623,2]
[340018840,1728334252389,-516.19655579,0.00041623,2]
[340018842,1728334252399,-150.0,0.0004163,2]
[340018844,1728334252408,-150.0,0.00041638,2]
[340018846,1728334252418,-500.0,0.00041643,120]
[340018848,1728334252427,-150.0,0.00041643,120]
[340018850,1728334252437,-206.71022064,0.00041643,120]
[340018852,1728334252447,-746.07,0.00041643,120]
[340018854,1728334252456,-524.72,0.00041643,120]
[340018856,1728334252465,-668.47,0.00041643,120]
[340018858,1728334252475,-872.94,0.00041643,120]
[340018859,1728334252484,-935.85,0.00041643,120]
[340018861,1728334252493,-641.57,0.00041643,120]
[340018863,1728334252502,-939.41,0.00041643,120]
[340018865,1728334252511,-567.0,0.00041643,120]
[340018867,1728334252520,-217.87569858,0.00041646,2]
[340018869,1728334252530,-9263.67961257,0.0004165,60]
[340018871,1728334252543,-1500.0,0.0004165,2]
[340018872,1728334252552,-150.0,0.00041655,2]
[340018874,1728334252562,-150.0,0.00041656,2]
[340018876,1728334252571,-150.0,0.00041659,2]
[340018878,1728334252582,-150.0,0.00041667,2]
[340018880,1728334252591,-150.0,0.00041672,2]
[340018882,1728334252600,-150.0,0.0004168,2]
[340018884,1728334252610,-150.0,0.00041694,2]
[340018886,1728334252619,-150.0,0.00041694,2]
[340018888,1728334252629,-150.0,0.00041695,2]
[340018889,1728334252638,-150.0,0.00041695,2]
[340018891,1728334252648,-150.0,0.00041717,2]
[340018893,1728334252657,-150.0,0.00041724,2]
[340018895,1728334252667,-1500.0,0.00041726,2]
[340018897,1728334252677,-150.0,0.0004173,2]
[340018899,1728334252687,-150.0,0.00041744,2]
[340018900,1728334252697,-1500.0,0.00041747,2]
[340018902,1728334252706,-1500.0,0.00041754,2]
[340018904,1728334252716,-150.0,0.00041759,2]
[340018906,1728334252725,-1500.0,0.00041759,2]
[340018908,1728334252735,-150.0,0.00041773,2]
[340018910,1728334252744,-150.0,0.00041774,2]
[340018912,1728334252754,-150.0,0.00041775,2]
[340018914,1728334252763,-158.9,0.00041775,120]
[340018916,1728334252773,-150.0,0.00041787,2]
[340018918,1728334252782,-701.94403568,0.0004179,30]
[340018919,1728334252791,-157.100805,0.00041798,120]
[340018921,1728334252800,-150.0,0.00041806,2]
[340018923,1728334252809,-150.0,0.00041827,2]
[340018925,1728334252819,-150.0,0.00041828,2]
[340018927,1728334252828,-150.0,0.00041839,2]
[340018929,1728334252838,-150.0,0.00041843,2]
[340018931,1728334252847,-150.0,0.00041872,2]
[340018932,1728334252856,-150.0,0.00041877,2]
[340018934,1728334252866,-150.0,0.00041888,2]
[340018936,1728334252875,-150.0,0.0004189,2]
[340018938,1728334252884,-150.0,0.00041892,2]
[340018940,1728334252893,-1500.0,0.00041893,2]
[340018942,1728334252902,-150.0,0.00041901,2]
[340018944,1728334252911,-1500.0,0.0004191,2]
[340018946,1728334252921,-500.0,0.00041917,120]
[340018947,1728334252930,-150.0,0.00041917,120]
[340018949,1728334252939,-746.07,0.00041917,120]
[340018951,1728334252948,-524.72,0.00041917,120]
[340018953,1728334252958,-668.47,0.00041917,120]
[340018955,1728334252967,-872.94,0.00041917,120]
[340018957,1728334252976,-935.85,0.00041917,120]
[340018959,1728334252986,-641.57,0.00041917,120]
[340018961,1728334252995,-939.41,0.00041917,120]
[340018963,1728334253005,-150.0,0.0004192,2]
[340018965,1728334253014,-1500.0,0.0004194,2]
[340018967,1728334253023,-1500.0,0.00041945,2]
[340018969,1728334253033,-1500.0,0.00041946,2]
[340018971,1728334253043,-150.0,0.0004195,2]
[340018973,1728334253053,-150.0,0.00041966,2]
[340018975,1728334253062,-1500.0,0.00041975,2]
[340018977,1728334253071,-150.0,0.00041985,2]
[340018979,1728334253081,-150.0,0.00041986,2]
[340018981,1728334253091,-150.0,0.00041989,2]
[340018983,1728334253100,-150.0,0.00041996,2]
[340018984,1728334253111,-1000.0,0.00041999,120]
[340018986,1728334253121,-1078.19,0.00041999,120]
[340018988,1728334253130,-50000.0,0.00042,32]
[340018990,1728334253139,-50000.0,0.00042,42]
[340018992,1728334253150,-44045.85979066,0.00042,30]
[340018994,1728334253160,-430.0,0.00042,28]
[340018996,1728334253169,-430.0,0.00042,28]
[340018998,1728334253180,-860.0,0.00042,28]
[340019000,1728334253195,-150.0,0.00042,49]
[340019002,1728334253205,-194.0,0.00042,28]
[340019004,1728334253215,-2110.0,0.00042,2]
[340019006,1728334253224,-391.7614631,0.00042,120]
[340019008,1728334253234,-1000000.0,0.00042,120]
[340019010,1728334253243,-13263.5110001,0.00042,7]
[340019012,1728334253253,-5497.81092432,0.00042,7]
[340019014,1728334253263,-14273.0,0.00042,42]
[340019016,1728334253273,-3798.37316519,0.00042,7]
[340019018,1728334253283,-5219.20101534,0.00042,7]
[340019020,1728334253292,-193.727716,0.00042,14]
[340019022,1728334253302,-193.727716,0.00042,14]
[340019024,1728334253312,-6500.0,0.00042,14]
[340019026,1728334253321,-6500.0,0.00042,14]
[340019028,1728334253331,-150.0,0.00042,2]
[340019030,1728334253341,-10000.0,0.00042,7]
[340019032,1728334253350,-12861.20480242,0.00042,7]
[340019034,1728334253359,-1309.77586447,0.0004201,2]
[340019036,1728334253368,-719.7954173,0.00042017,2]
[340019038,1728334253378,-934.1769136,0.00042017,2]
[340019040,1728334253387,-1148.5584098,0.00042017,2]
[340019042,1728334253395,-1362.9399061,0.00042017,2]
[340019044,1728334253405,-1577.3214023,0.00042017,2]
[340019046,1728334253414,-1791.7028986,0.00042017,2]
[340019047,1728334253424,-2709.9860337,0.00042017,2]
[340019048,1728334253436,-3504.6647805,0.00042017,2]
[340019049,1728334253445,-4299.3435273,0.00042017,2]
[340019050,1728334253455,-5094.0222741,0.00042017,2]
[340019051,1728334253465,-5888.7010209,0.00042017,2]
[340019052,1728334253475,-6683.3797678,0.00042017,2]
[340019053,1728334253484,-8426.5595904,0.00042046,2]
[340019054,1728334253494,-10936.2983435,0.00042046,2]
[340019055,1728334253504,-13446.0370966,0.00042046,2]
[340019056,1728334253513,-15955.7758496,0.00042046,2]
[340019057,1728334253523,-18465.5146027,0.00042046,2]
[340019059,1728334253532,-20975.2533558,0.00042046,2]
[340019061,1728334253543,-8026.4928921,0.00042075,2]
[340019063,1728334253553,-10417.0770976,0.00042075,2]
[340019065,1728334253562,-12807.661303,0.00042075,2]
[340019067,1728334253572,-15198.2455084,0.00042075,2]
[340019069,1728334253583,-17588.8297138,0.00042075,2]
[340019070,1728334253592,-19979.4139193,0.00042075,2]
[340019072,1728334253602,-500.0,0.00042191,120]
[340019074,1728334253612,-150.0,0.00042191,120]
[340019076,1728334253621,-746.07,0.00042191,120]
[340019078,1728334253631,-524.72,0.00042191,120]
[340019080,1728334253641,-668.47,0.00042191,120]
[340019082,1728334253650,-872.94,0.00042191,120]
[340019084,1728334253659,-935.85,0.00042191,120]
[340019086,1728334253669,-641.57,0.00042191,120]
[340019088,1728334253680,-939.41,0.00042191,120]
[340019090,1728334253689,-151.100715,0.00042198,120]
[340019092,1728334253699,-250000.0,0.000424,120]
[340019094,1728334253708,-500.0,0.00042465,120]
[340019096,1728334253718,-204.69,0.00042465,120]
[340019098,1728334253727,-746.07,0.00042465,120]
[340019100,1728334253736,-524.72,0.00042465,120]
[340019102,1728334253747,-668.47,0.00042465,120]
[340019104,1728334253757,-872.94,0.00042465,120]
[340019106,1728334253766,-935.85,0.00042465,120]
[340019108,1728334253775,-641.57,0.00042465,120]
[340019110,1728334253784,-939.41,0.00042465,120]
[340019112,1728334253794,-167.34,0.00042466,2]
[340019114,1728334253803,-152.26,0.00042466,2]
[340019116,1728334253813,-157.27,0.00042466,2]
[340019118,1728334253823,-155.89,0.00042466,2]
[340019119,1728334253832,-157.100805,0.00042498,120]
[340019121,1728334253842,-200.0,0.000425,120]
[340019123,1728334253851,-1447.64,0.000425,2]
[340019125,1728334253861,-500.0,0.00042548,60]
[340019127,1728334253870,-500.0,0.00042548,60]
[340019129,1728334253879,-339.62,0.00042609,2]
[340019131,1728334253889,-73830.0918073,0.000427,30]
[340019133,1728334253898,-500.0,0.00042739,120]
[340019135,1728334253907,-746.07,0.00042739,120]
[340019137,1728334253916,-524.72,0.00042739,120]
[340019139,1728334253925,-668.47,0.00042739,120]
[340019141,1728334253935,-872.94,0.00042739,120]
[340019143,1728334253944,-935.85,0.00042739,120]
[340019145,1728334253954,-641.57,0.00042739,120]
[340019147,1728334253963,-939.41,0.00042739,120]
[340019149,1728334253972,-173.100705,0.00042798,120]
[340019151,1728334253981,-1330.7,0.000428,60]
[340019152,1728334253991,-144673.26674629,0.000428,60]
[340019164,1728334254095,-334.32,0.000428,120]
[340019166,1728334254110,-193.727716,0.000428,14]
[340019168,1728334254119,-193.727716,0.000428,14]
[340019170,1728334254128,-6500.0,0.000428,14]
[340019171,1728334254138,-6500.0,0.000428,14]
[340019173,1728334254147,-152.0,0.0004283,120]
[340019175,1728334254157,-280.41129188,0.00042898,120]
[340019177,1728334254166,-150.0,0.000429,30]
[340019179,1728334254176,-1000.0,0.00042999,120]
[340019181,1728334254185,-50000.0,0.00043,33]
[340019183,1728334254195,-50000.0,0.00043,43]
[340019185,1728334254204,-10000.0,0.00043,7]
[340019187,1728334254213,-35865.0,0.00043,120]
[340019189,1728334254222,-156.9922912,0.00043,30]
[340019191,1728334254231,-62585.47397805,0.00043,2]
[340019192,1728334254241,-6093.63238712,0.00043,30]
[340019194,1728334254250,-150.0,0.00043,120]
[340019196,1728334254259,-500.0,0.00043,120]
[340019198,1728334254268,-20027.45,0.00043,30]
[340019200,1728334254277,-39953.75905532,0.00043,30]
[340019202,1728334254286,-20000.0,0.00043,90]
[340019204,1728334254295,-1050.0,0.00043,2]
[340019206,1728334254304,-1000000.0,0.00043,120]
[340019207,1728334254313,-13262.0,0.00043,7]
[340019209,1728334254322,-5497.0,0.00043,7]
[340019211,1728334254331,-3798.0,0.00043,7]
[340019213,1728334254341,-5219.0,0.00043,7]
[340019215,1728334254350,-193.727716,0.00043,14]
[340019217,1728334254359,-193.727716,0.00043,14]
[340019218,1728334254368,-6500.0,0.00043,14]
[340019220,1728334254377,-6500.0,0.00043,14]
[340019222,1728334254386,-10000.0,0.00043,7]
[340019224,1728334254395,-12860.0,0.00043,7]
[340019225,1728334254404,-500.0,0.00043013,120]
[340019227,1728334254412,-746.07,0.00043013,120]
[340019229,1728334254422,-524.72,0.00043013,120]
[340019231,1728334254432,-668.47,0.00043013,120]
[340019233,1728334254441,-872.94,0.00043013,120]
[340019235,1728334254451,-935.85,0.00043013,120]
[340019237,1728334254460,-641.57,0.00043013,120]
[340019239,1728334254469,-939.41,0.00043013,120]
[340019241,1728334254477,-5015.17576,0.00043085,30]
[340019243,1728334254486,-9263.67961257,0.0004315,60]
[340019245,1728334254495,-151.100715,0.00043198,120]
[340019247,1728334254504,-193.61613419,0.00043247,120]
[340019249,1728334254513,-500.0,0.00043287,120]
[340019251,1728334254522,-746.07,0.00043287,120]
[340019253,1728334254531,-524.72,0.00043287,120]
[340019255,1728334254541,-668.47,0.00043287,120]
[340019257,1728334254550,-872.94,0.00043287,120]
[340019259,1728334254560,-935.85,0.00043287,120]
[340019261,1728334254569,-641.57,0.00043287,120]
[340019263,1728334254579,-939.41,0.00043287,120]
[340019265,1728334254588,-250000.0,0.000434,120]
[340019266,1728334254597,-934.93803953,0.00043432,60]
[340019268,1728334254606,-500.0,0.00043561,120]
[340019270,1728334254614,-746.07,0.00043561,120]
[340019272,1728334254623,-524.72,0.00043561,120]
[340019274,1728334254633,-668.47,0.00043561,120]
[340019276,1728334254642,-872.94,0.00043561,120]
[340019278,1728334254651,-935.85,0.00043561,120]
[340019280,1728334254661,-641.57,0.00043561,120]
[340019282,1728334254670,-939.41,0.00043561,120]
[340019284,1728334254679,-2066.53082288,0.0004359,30]
[340019286,1728334254688,-500.0,0.00043644,60]
[340019288,1728334254697,-500.0,0.00043644,60]
[340019290,1728334254706,-211.60621016,0.000437,120]
[340019292,1728334254715,-150.0,0.00043761,120]
[340019294,1728334254724,-157.100805,0.00043798,120]
[340019296,1728334254733,-250000.0,0.000438,120]
[340019298,1728334254742,-2000.0,0.000438,120]
[340019300,1728334254751,-26086.84740309,0.000438,120]
[340019301,1728334254761,-3000.0,0.000438,2]
[340019303,1728334254770,-1431.16644271,0.000438,2]
[340019305,1728334254779,-500.0,0.00043835,120]
[340019307,1728334254788,-183.12311914,0.00043835,120]
[340019309,1728334254797,-510.96778049,0.00043835,120]
[340019311,1728334254806,-1750.0,0.00043835,14]
[340019313,1728334254815,-746.07,0.00043835,120]
[340019315,1728334254824,-524.72,0.00043835,120]
[340019317,1728334254833,-668.47,0.00043835,120]
[340019319,1728334254842,-872.94,0.00043835,120]
[340019321,1728334254851,-935.85,0.00043835,120]
[340019323,1728334254860,-641.57,0.00043835,120]
[340019325,1728334254869,-939.41,0.00043835,120]
[340019327,1728334254878,-47515.80329328,0.00043868,30]
[340019329,1728334254887,-21409.37441625,0.0004389,120]
[340019331,1728334254895,-1000.0,0.00043999,120]
[340019333,1728334254904,-50000.0,0.00044,34]
[340019335,1728334254913,-50000.0,0.00044,44]
[340019336,1728334254922,-250.6118815,0.00044,14]
[340019338,1728334254932,-9400.0,0.00044,2]
[340019340,1728334254941,-20000.0,0.00044,120]
[340019342,1728334254950,-15828.0,0.00044,120]
[340019344,1728334254959,-1000000.0,0.00044,120]
[340019346,1728334254969,-289600.35291183,0.00044,90]
[340019348,1728334254978,-500.0,0.00044,120]
[340019350,1728334254987,-300.0,0.00044,20]
[340019352,1728334254996,-280.0,0.00044,120]
[340019354,1728334255005,-250000.0,0.00044,120]
[340019356,1728334255014,-500.0,0.00044,120]
[340019358,1728334255024,-800.0,0.00044,120]
[340019360,1728334255033,-758.0,0.00044,120]
[340019362,1728334255042,-651.27456853,0.00044,30]
[340019364,1728334255052,-446.02,0.00044,120]
[340019366,1728334255061,-417952.30280038,0.00044,30]
[340019368,1728334255070,-150.0,0.00044,120]
[340019370,1728334255080,-1000000.0,0.00044,120]
[340019372,1728334255089,-913470.15856877,0.00044,120]
[340019381,1728334255163,-1121.48036,0.00044,120]
[340019383,1728334255175,-403.449,0.00044,120]
[340019385,1728334255187,-660.49,0.00044,120]
[340019392,1728334255248,-407.62438002,0.0001138,2]
[340019394,1728334255257,-582.282162,0.000139,2]
[340019396,1728334255267,-582.282162,0.00025,7]
[340019398,1728334255276,-582.282162,0.00032485,7]
[340019400,1728334255285,-500.0,0.00038356,120]
[340019402,1728334255294,-500.0,0.0003863,120]
[340019404,1728334255303,-500.0,0.00038904,120]
[340019406,1728334255312,-500.0,0.00039178,120]
[340019408,1728334255321,-133.22913399,0.00039452,120]
[340019410,1728334255332,-366.77086601,0.00039452,120]